[Event "SVK-ch Open 2018"]
[Site "Banska Stiavnica"]
[Date "2018.07.07"]
[Round "1"]
[White "Ruckschloss, Karol"]
[Black "Brnusak, Andrej"]
[Result "1-0"]
[ECO "E73"]
[WhiteElo "2245"]
[BlackElo "1866"]
[Annotator "NA"]
[PlyCount "79"]
[EventDate "2018.07.07"]
[EventType "swiss"]
[EventCountry "SVK"]
[SourceTitle "playchess.com"]
[Source "ChessBase"]
[SourceQuality "1"]
[TimeControl "40/5400+30:1800+30"]

1. c4 {[%emt 0:00:00]} Nf6 {[%emt 0:00:00]} 2. d4 {[%emt 0:00:00]} g6 {[%emt 0:00:00]} 3. Nc3 {[%emt 0:00:00]} Bg7 {[%emt 0:00:00]} 4. e4 {[%emt 0:00:00]} d6 {[%emt 0:00:09]} 5. Be2 {[%emt 0:00:26]} O-O {[%emt 0:00:28]} 6. h4 {[%emt 0:00:45]} c5 {[%emt 0:01:48]} 7. d5 {[%emt 0:00:07]} e6 {[%emt 0:02:31]} 8. h5 {[%emt 0:00:15]} Re8 {[%emt 0:02:33]} 9. hxg6 {[%emt 0:02:51]} hxg6 {[%emt 0:00:42]} 10. Bh6 {[%emt 0:04:07]} Bh8 {[%emt 0:01:54]} 11. Bg5 {[%emt 0:00:38]} e5 {[%emt 0:02:55]} 12. Qd3 {[%emt 0:01:41]} Bg7 {[%emt 0:04:21]} 13. Qg3 {[%emt 0:01:06]} Nbd7 {[%emt 0:02:20]} 14. Qh4 {[%emt 0:00:39]} Nf8 {[%emt 0:06:48]} 15. g4 {[%emt 0:07:13]} a6 {[%emt 0:14:26]} 16. a4 {[%emt 0:00:35]} N8h7 {[%emt 0:06:47]} 17. Bd2 {[%emt 0:02:53]} Nf8 {[%emt 0:03:10]} 18. Bg5 {[%emt 0:19:36]} N8h7 {[%emt 0:03:18]} 19. Bh6 {[%emt 0:01:50]} Bh8 {[%emt 0:12:49]} 20. g5 {[%emt 0:03:16]} Nd7 {[%emt 0:00:45]} 21. Nf3 {[%emt 0:01:21]} Qb6 {[%emt 0:01:16]} 22. O-O-O {[%emt 0:01:26]} Qb4 {[%emt 0:01:40]} 23. Kc2 {[%emt 0:00:40]} a5 {[%emt 0:03:23]} 24. b3 {[%emt 0:00:57]} Nb8 {[%emt 0:01:10]} 25. Nb5 {[%emt 0:01:03]} Na6 {[%emt 0:02:23]} 26. Ne1 {[%emt 0:02:02]} Bd7 {[%emt 0:02:19]} 27. Nd3 {[%emt 0:00:23]} Bxb5 {[%emt 0:00:20]} 28. axb5 {[%emt 0:02:41]} Qa3 {[%emt 0:00:52]} 29. Ra1 {[%emt 0:02:59]} Nb4+ {[%emt 0:01:03]} 30. Nxb4 {[%emt 0:00:30]} axb4 {[%emt 0:01:36]} 31. Rxa3 {[%emt 0:00:08]} Rxa3 {[%emt 0:00:05]} 32. Qh3 {[%emt 0:02:40]} Rea8 {[%emt 0:01:24]} 33. Qd7 {[%emt 0:00:44]} Ra2+ {[%emt 0:00:47]} 34. Kd3 {[%emt 0:00:08]} Rb2 {[%emt 0:01:30]} 35. Bd1 {[%emt 0:00:10]} Rxf2 {[%emt 0:00:12]} 36. Qxb7 {[%emt 0:00:24]} Rd8 {[%emt 0:03:02]} 37. Qc7 {[%emt 0:01:03]} Ra8 {[%emt 0:00:11]} 38. b6 {[%emt 0:00:11]} Rg2 {[%emt 0:03:50]} 39. b7 {[%emt 0:00:32]} Rg3+ {[%emt 0:00:29]} 40. Kc2 {[%emt 0:00:35]} 1-0

[Event "SVK-ch Open 2018"]
[Site "Banska Stiavnica"]
[Date "2018.07.07"]
[Round "1"]
[White "Seres, Bela"]
[Black "Urhegyi, Ferenc"]
[Result "1-0"]
[ECO "C00"]
[WhiteElo "2212"]
[BlackElo "1851"]
[Annotator "NA"]
[PlyCount "61"]
[EventDate "2018.07.07"]
[EventType "swiss"]
[EventCountry "SVK"]
[SourceTitle "playchess.com"]
[Source "ChessBase"]
[SourceQuality "1"]
[TimeControl "40/5400+30:1800+30"]

1. e4 {[%emt 0:00:00]} e6 {[%emt 0:00:00]} 2. d4 {[%emt 0:00:03]} b6 {[%emt 0:00:00]} 3. Bd3 {[%emt 0:01:11]} Bb7 {[%emt 0:00:03]} 4. Ne2 {[%emt 0:00:24]} Nf6 {[%emt 0:00:31]} 5. Ng3 {[%emt 0:02:19]} Be7 {[%emt 0:02:53]} 6. e5 {[%emt 0:01:29]} Nd5 {[%emt 0:03:37]} 7. a3 {[%emt 0:02:07]} Bg5 {[%emt 0:04:45]} 8. Be4 {[%emt 0:05:36]} Bxc1 {[%emt 0:03:16]} 9. Qxc1 {[%emt 0:00:34]} Nc6 {[%emt 0:01:03]} 10. c4 {[%emt 0:07:53]} Nde7 {[%emt 0:03:29]} 11. O-O {[%emt 0:01:46]} Na5 {[%emt 0:11:39]} 12. Bxb7 {[%emt 0:04:51]} Nxb7 {[%emt 0:00:02]} 13. b4 {[%emt 0:07:59]} d5 {[%emt 0:03:47]} 14. c5 {[%emt 0:01:02]} c6 {[%emt 0:00:33]} 15. Nc3 {[%emt 0:06:20]} bxc5 {[%emt 0:03:37]} 16. bxc5 {[%emt 0:03:01]} O-O {[%emt 0:01:07]} 17. f4 {[%emt 0:05:46]} Na5 {[%emt 0:03:22]} 18. Ra2 {[%emt 0:07:16]} Nc4 {[%emt 0:01:10]} 19. f5 {[%emt 0:04:09]} exf5 {[%emt 0:02:26]} 20. Nxf5 {[%emt 0:00:56]} Nxf5 {[%emt 0:00:50]} 21. Rxf5 {[%emt 0:00:02]} Qh4 {[%emt 0:01:41]} 22. Rf4 {[%emt 0:00:13]} Qg5 {[%emt 0:00:53]} 23. Raf2 {[%emt 0:01:02]} Rab8 {[%emt 0:01:03]} 24. h3 {[%emt 0:06:11]} Qh6 {[%emt 0:04:24]} 25. Kh2 {[%emt 0:05:37]} Rb7 {[%emt 0:03:43]} 26. R2f3 {[%emt 0:06:54]} Rb2 {[%emt 0:03:01]} 27. Nd1 {[%emt 0:05:23]} Rb7 {[%emt 0:02:59]} 28. Nf2 {[%emt 0:01:48]} Qg6 {[%emt 0:06:28]} 29. Rg4 {[%emt 0:01:20]} Qe6 {[%emt 0:04:32]} 30. Rf6 {[%emt 0:00:45]} Qe7 {[%emt 0:01:07]} 31. Qh6 {[%emt 0:00:32]} 1-0

[Event "SVK-ch Open 2018"]
[Site "Banska Stiavnica"]
[Date "2018.07.07"]
[Round "1"]
[White "Kanakova, Natalie"]
[Black "Huncar, Martin"]
[Result "1-0"]
[ECO "B40"]
[WhiteElo "2206"]
[BlackElo "1840"]
[Annotator "NA"]
[PlyCount "85"]
[EventDate "2018.07.07"]
[EventType "swiss"]
[EventCountry "SVK"]
[SourceTitle "playchess.com"]
[Source "ChessBase"]
[SourceQuality "1"]
[TimeControl "40/5400+30:1800+30"]

1. e4 {[%emt 0:00:00]} c5 {[%emt 0:00:00]} 2. Nf3 {[%emt 0:00:03]} e6 {[%emt 0:00:00]} 3. d4 {[%emt 0:00:21]} cxd4 {[%emt 0:00:00]} 4. Nxd4 {[%emt 0:00:05]} Nf6 {[%emt 0:00:00]} 5. Nc3 {[%emt 0:00:06]} Bb4 {[%emt 0:00:12]} 6. e5 {[%emt 0:01:58]} Nd5 {[%emt 0:00:03]} 7. Bd2 {[%emt 0:22:59]} Nxc3 {[%emt 0:13:43]} 8. bxc3 {[%emt 0:00:08]} Be7 {[%emt 0:00:25]} 9. Qg4 {[%emt 0:01:29]} g6 {[%emt 0:01:06]} 10. Bd3 {[%emt 0:02:49]} Nc6 {[%emt 0:00:06]} 11. Qg3 {[%emt 0:01:27]} Qa5 {[%emt 0:07:21]} 12. Nb5 {[%emt 0:04:39]} a6 {[%emt 0:05:50]} 13. c4 {[%emt 0:01:29]} Qd8 {[%emt 0:06:57]} 14. Nd6+ {[%emt 0:01:16]} Bxd6 {[%emt 0:00:29]} 15. exd6 {[%emt 0:00:04]} b6 {[%emt 0:14:10]} 16. Bc3 {[%emt 0:03:45]} Rg8 {[%emt 0:02:59]} 17. h4 {[%emt 0:06:14]} h5 {[%emt 0:01:13]} 18. Qf4 {[%emt 0:00:52]} f5 {[%emt 0:08:35]} 19. Qh6 {[%emt 0:01:41]} e5 {[%emt 0:03:38]} 20. Qh7 {[%emt 0:04:06]} Kf8 {[%emt 0:00:45]} 21. Bd2 {[%emt 0:00:42]} Qf6 {[%emt 0:04:43]} 22. Bh6+ {[%emt 0:01:30]} Rg7 {[%emt 0:00:09]} 23. Bxg7+ {[%emt 0:01:51]} Qxg7 {[%emt 0:00:02]} 24. Qxg7+ {[%emt 0:00:06]} Kxg7 {[%emt 0:00:05]} 25. Rb1 {[%emt 0:00:14]} e4 {[%emt 0:01:10]} 26. Be2 {[%emt 0:00:05]} Rb8 {[%emt 0:02:19]} 27. Rh3 {[%emt 0:02:47]} Nd4 {[%emt 0:07:21]} 28. Rc3 {[%emt 0:00:30]} Kf6 {[%emt 0:00:39]} 29. a4 {[%emt 0:01:32]} Ke5 {[%emt 0:07:21]} 30. a5 {[%emt 0:00:32]} Kxd6 {[%emt 0:01:24]} 31. c5+ {[%emt 0:00:51]} Ke5 {[%emt 0:02:01]} 32. Rxb6 {[%emt 0:00:36]} Rxb6 {[%emt 0:00:52]} 33. cxb6 {[%emt 0:00:06]} Nc6 {[%emt 0:00:55]} 34. Rg3 {[%emt 0:03:06]} Ne7 {[%emt 0:01:33]} 35. Rb3 {[%emt 0:00:44]} Bb7 {[%emt 0:01:11]} 36. Bxa6 {[%emt 0:00:08]} Bxa6 {[%emt 0:00:36]} 37. b7 {[%emt 0:00:05]} Nc6 {[%emt 0:02:23]} 38. b8=Q+ {[%emt 0:00:20]} Nxb8 {[%emt 0:00:01]} 39. Rxb8 {[%emt 0:00:08]} Bc4 {[%emt 0:03:24]} 40. Rb6 {[%emt 0:00:39]} d6 {[%emt 0:00:40]} 41. a6 {[%emt 0:30:07]} f4 {[%emt 0:30:38]} 42. a7 {[%emt 0:00:06]} Bd5 {[%emt 0:00:04]} 43. Rb5 {[%emt 0:00:05]} 1-0

[Event "SVK-ch Open 2018"]
[Site "Banska Stiavnica"]
[Date "2018.07.07"]
[Round "1"]
[White "Bombek, Peter"]
[Black "Gonda, Jozef"]
[Result "1-0"]
[ECO "D43"]
[WhiteElo "2201"]
[BlackElo "1832"]
[Annotator "NA"]
[PlyCount "151"]
[EventDate "2018.07.07"]
[EventType "swiss"]
[EventCountry "SVK"]
[SourceTitle "playchess.com"]
[Source "ChessBase"]
[SourceQuality "1"]
[TimeControl "40/5400+30:1800+30"]

1. d4 {[%emt 0:00:00]} d5 {[%emt 0:00:00]} 2. Nf3 {[%emt 0:00:00]} Nf6 {[%emt 0:00:00]} 3. c4 {[%emt 0:00:00]} e6 {[%emt 0:00:27]} 4. Nc3 {[%emt 0:00:07]} c6 {[%emt 0:01:43]} 5. Bg5 {[%emt 0:00:50]} Be7 {[%emt 0:00:26]} 6. e3 {[%emt 0:00:04]} O-O {[%emt 0:00:54]} 7. Be2 {[%emt 0:00:18]} Nbd7 {[%emt 0:00:43]} 8. O-O {[%emt 0:00:07]} dxc4 {[%emt 0:00:57]} 9. Bxc4 {[%emt 0:00:09]} Nd5 {[%emt 0:00:50]} 10. Bxe7 {[%emt 0:00:44]} Qxe7 {[%emt 0:06:01]} 11. Qd2 {[%emt 0:04:07]} Nxc3 {[%emt 0:10:29]} 12. Qxc3 {[%emt 0:01:39]} b5 {[%emt 0:03:35]} 13. Be2 {[%emt 0:01:46]} Bb7 {[%emt 0:00:17]} 14. Rfd1 {[%emt 0:00:40]} Rfd8 {[%emt 0:03:18]} 15. a3 {[%emt 0:02:36]} Rac8 {[%emt 0:02:10]} 16. b4 {[%emt 0:01:18]} a6 {[%emt 0:02:03]} 17. h3 {[%emt 0:03:35]} h6 {[%emt 0:06:42]} 18. Rd2 {[%emt 0:01:19]} Nf6 {[%emt 0:11:29]} 19. Qc2 {[%emt 0:04:41]} g6 {[%emt 0:07:42]} 20. Ne5 {[%emt 0:02:31]} Nd7 {[%emt 0:04:47]} 21. Nd3 {[%emt 0:10:39]} Kg7 {[%emt 0:06:22]} 22. Bf3 {[%emt 0:04:01]} Rc7 {[%emt 0:04:10]} 23. Rad1 {[%emt 0:02:03]} h5 {[%emt 0:06:36]} 24. Qc3 {[%emt 0:00:40]} f6 {[%emt 0:01:08]} 25. Nc5 {[%emt 0:01:58]} Nxc5 {[%emt 0:01:41]} 26. Qxc5 {[%emt 0:00:23]} Qxc5 {[%emt 0:00:52]} 27. dxc5 {[%emt 0:00:46]} Rxd2 {[%emt 0:00:14]} 28. Rxd2 {[%emt 0:00:02]} f5 {[%emt 0:02:06]} 29. g4 {[%emt 0:04:11]} hxg4 {[%emt 0:00:21]} 30. hxg4 {[%emt 0:00:35]} Kf6 {[%emt 0:00:39]} 31. Kg2 {[%emt 0:01:31]} Bc8 {[%emt 0:04:51]} 32. Rd8 {[%emt 0:02:42]} Bd7 {[%emt 0:02:09]} 33. Rf8+ {[%emt 0:06:32]} Kg7 {[%emt 0:00:40]} 34. Rb8 {[%emt 0:00:47]} Bc8 {[%emt 0:01:03]} 35. g5 {[%emt 0:02:42]} Kf7 {[%emt 0:01:17]} 36. Bd1 {[%emt 0:02:44]} e5 {[%emt 0:00:42]} 37. Bb3+ {[%emt 0:00:58]} Ke7 {[%emt 0:00:02]} 38. Kf3 {[%emt 0:02:24]} Bd7 {[%emt 0:03:34]} 39. Rg8 {[%emt 0:05:56]} Be8 {[%emt 0:00:03]} 40. Ke2 {[%emt 0:02:30]} Bf7 {[%emt 0:01:47]} 41. Bxf7 {[%emt 0:32:29]} Kxf7 {[%emt 0:30:03]} 42. Ra8 {[%emt 0:00:49]} Ke6 {[%emt 0:02:01]} 43. Rg8 {[%emt 0:06:00]} Kf7 {[%emt 0:01:14]} 44. Rd8 {[%emt 0:00:44]} e4 {[%emt 0:02:51]} 45. Rd6 {[%emt 0:00:46]} Rc8 {[%emt 0:00:00]} 46. Kd2 {[%emt 0:00:00]} a5 {[%emt 0:00:00]} 47. Rf6+ {[%emt 0:00:00]} Ke7 {[%emt 0:00:00]} 48. bxa5 {[%emt 0:00:00]} Ra8 {[%emt 0:00:00]} 49. Rxg6 {[%emt 0:00:00]} Rxa5 {[%emt 0:00:00]} 50. Rxc6 {[%emt 0:00:00]} Rxa3 {[%emt 0:00:00]} 51. Rb6 {[%emt 0:00:00]} Ra2+ {[%emt 0:00:00]} 52. Ke1 {[%emt 0:00:00]} b4 {[%emt 0:00:00]} 53. Rxb4 {[%emt 0:00:00]} Rc2 {[%emt 0:00:00]} 54. Rb7+ {[%emt 0:00:00]} Ke6 {[%emt 0:00:00]} 55. Rc7 {[%emt 0:00:00]} Rc1+ {[%emt 0:00:00]} 56. Ke2 {[%emt 0:04:18]} Rg1 {[%emt 0:00:00]} 57. g6 {[%emt 0:00:12]} Kd5 {[%emt 0:00:33]} 58. g7 {[%emt 0:01:38]} Rg2 {[%emt 0:02:07]} 59. Rf7 {[%emt 0:03:16]} Kxc5 {[%emt 0:00:08]} 60. Rxf5+ {[%emt 0:00:20]} Kd6 {[%emt 0:00:40]} 61. Rf7 {[%emt 0:01:57]} Ke6 {[%emt 0:00:46]} 62. Kf1 {[%emt 0:02:59]} Rg5 {[%emt 0:00:54]} 63. Rf4 {[%emt 0:01:59]} Ke5 {[%emt 0:00:08]} 64. Rf7 {[%emt 0:00:11]} Ke6 {[%emt 0:00:19]} 65. Ra7 {[%emt 0:00:10]} Rg4 {[%emt 0:00:53]} 66. f3 {[%emt 0:02:52]} exf3 {[%emt 0:00:37]} 67. Kf2 {[%emt 0:00:11]} Kf6 {[%emt 0:00:11]} 68. Kxf3 {[%emt 0:00:09]} Rxg7 {[%emt 0:01:14]} 69. Rxg7 {[%emt 0:00:17]} Kxg7 {[%emt 0:00:22]} 70. Ke4 {[%emt 0:00:07]} Kf6 {[%emt 0:00:44]} 71. Kd5 {[%emt 0:00:09]} Ke7 {[%emt 0:00:29]} 72. Ke5 {[%emt 0:00:06]} Kd7 {[%emt 0:01:40]} 73. Kf6 {[%emt 0:00:34]} Ke8 {[%emt 0:00:02]} 74. Ke6 {[%emt 0:00:41]} Kd8 {[%emt 0:00:34]} 75. e4 {[%emt 0:00:33]} Ke8 {[%emt 0:01:57]} 76. e5 {[%emt 0:00:10]} 1-0

[Event "SVK-ch Open 2018"]
[Site "Banska Stiavnica"]
[Date "2018.07.07"]
[Round "1"]
[White "Kostolansky, Sebastian Lukas"]
[Black "Weis, Dusan"]
[Result "1-0"]
[ECO "C65"]
[WhiteElo "2197"]
[BlackElo "1818"]
[Annotator "NA"]
[PlyCount "55"]
[EventDate "2018.07.07"]
[EventType "swiss"]
[EventCountry "SVK"]
[SourceTitle "playchess.com"]
[Source "ChessBase"]
[SourceQuality "1"]
[TimeControl "40/5400+30:1800+30"]

1. e4 {[%emt 0:00:00]} e5 {[%emt 0:00:00]} 2. Nf3 {[%emt 0:00:00]} Nc6 {[%emt 0:00:00]} 3. Bb5 {[%emt 0:00:00]} Nf6 {[%emt 0:00:00]} 4. d3 {[%emt 0:00:00]} d6 {[%emt 0:00:32]} 5. c3 {[%emt 0:00:04]} Be7 {[%emt 0:00:17]} 6. O-O {[%emt 0:00:09]} O-O {[%emt 0:00:36]} 7. Nbd2 {[%emt 0:00:35]} Bg4 {[%emt 0:00:30]} 8. h3 {[%emt 0:00:43]} Bh5 {[%emt 0:00:07]} 9. Re1 {[%emt 0:00:04]} a6 {[%emt 0:00:37]} 10. Ba4 {[%emt 0:00:10]} b5 {[%emt 0:00:34]} 11. Bc2 {[%emt 0:00:59]} Nb8 {[%emt 0:00:51]} 12. Nf1 {[%emt 0:01:22]} Re8 {[%emt 0:01:06]} 13. Ng3 {[%emt 0:04:18]} Bg6 {[%emt 0:00:03]} 14. Nh4 {[%emt 0:01:31]} c5 {[%emt 0:03:02]} 15. Qf3 {[%emt 0:08:00]} Nbd7 {[%emt 0:05:29]} 16. Ngf5 {[%emt 0:06:10]} Bf8 {[%emt 0:10:30]} 17. g4 {[%emt 0:10:23]} h6 {[%emt 0:00:50]} 18. g5 {[%emt 0:07:36]} hxg5 {[%emt 0:02:29]} 19. Bxg5 {[%emt 0:01:32]} Bh5 {[%emt 0:01:18]} 20. Qg2 {[%emt 0:04:58]} b4 {[%emt 0:09:45]} 21. Bb3 {[%emt 0:11:21]} Kh7 {[%emt 0:10:10]} 22. Ng3 {[%emt 0:02:35]} Bg6 {[%emt 0:04:03]} 23. Nxg6 {[%emt 0:01:45]} fxg6 {[%emt 0:00:15]} 24. h4 {[%emt 0:00:00]} Be7 {[%emt 0:00:50]} 25. Qh3 {[%emt 0:03:12]} Nh5 {[%emt 0:21:34]} 26. Nxh5 {[%emt 0:02:38]} gxh5 {[%emt 0:02:23]} 27. Qf5+ {[%emt 0:02:15]} g6 {[%emt 0:07:33]} 28. Qf7+ {[%emt 0:00:06]} 1-0

[Event "SVK-ch Open 2018"]
[Site "Banska Stiavnica"]
[Date "2018.07.07"]
[Round "1"]
[White "Jozefek, Michal"]
[Black "Sarkozi, Szabolcs"]
[Result "1-0"]
[ECO "E73"]
[WhiteElo "2182"]
[BlackElo "1808"]
[Annotator "NA"]
[PlyCount "85"]
[EventDate "2018.07.07"]
[EventType "swiss"]
[EventCountry "SVK"]
[SourceTitle "playchess.com"]
[Source "ChessBase"]
[SourceQuality "1"]
[TimeControl "40/5400+30:1800+30"]

1. d4 {[%emt 0:00:00]} Nf6 {[%emt 0:00:00]} 2. c4 {[%emt 0:00:07]} g6 {[%emt 0:00:00]} 3. Nc3 {[%emt 0:00:14]} Bg7 {[%emt 0:00:00]} 4. e4 {[%emt 0:00:03]} d6 {[%emt 0:00:00]} 5. Be2 {[%emt 0:00:09]} O-O {[%emt 0:00:10]} 6. Bg5 {[%emt 0:01:10]} h6 {[%emt 0:02:21]} 7. Be3 {[%emt 0:04:39]} e5 {[%emt 0:04:27]} 8. d5 {[%emt 0:00:31]} c5 {[%emt 0:14:19]} 9. dxc6 {[%emt 0:08:44]} bxc6 {[%emt 0:00:25]} 10. Qd2 {[%emt 0:00:08]} Kh7 {[%emt 0:00:15]} 11. Rd1 {[%emt 0:00:33]} Qa5 {[%emt 0:09:55]} 12. Bf3 {[%emt 0:05:22]} Be6 {[%emt 0:11:23]} 13. b3 {[%emt 0:04:07]} Ne8 {[%emt 0:18:03]} 14. Nge2 {[%emt 0:04:04]} f5 {[%emt 0:01:23]} 15. g3 {[%emt 0:01:04]} f4 {[%emt 0:11:41]} 16. gxf4 {[%emt 0:03:20]} exf4 {[%emt 0:01:33]} 17. Bd4 {[%emt 0:02:30]} Nf6 {[%emt 0:05:01]} 18. Nxf4 {[%emt 0:03:18]} Bd7 {[%emt 0:08:01]} 19. Nce2 {[%emt 0:04:51]} Qc7 {[%emt 0:02:46]} 20. h4 {[%emt 0:02:14]} Na6 {[%emt 0:03:50]} 21. Be3 {[%emt 0:01:43]} Nc5 {[%emt 0:02:00]} 22. Qxd6 {[%emt 0:01:26]} Qa5+ {[%emt 0:01:57]} 23. Qd2 {[%emt 0:00:51]} Qa3 {[%emt 0:01:20]} 24. e5 {[%emt 0:05:08]} Rad8 {[%emt 0:00:34]} 25. exf6 {[%emt 0:01:08]} Bxf6 {[%emt 0:00:16]} 26. h5 {[%emt 0:01:55]} g5 {[%emt 0:00:23]} 27. Qc2+ {[%emt 0:00:33]} Kg8 {[%emt 0:00:39]} 28. Qg6+ {[%emt 0:01:27]} Bg7 {[%emt 0:00:25]} 29. Bd4 {[%emt 0:08:20]} Rf7 {[%emt 0:00:19]} 30. Nd5 {[%emt 0:00:27]} Bf5 {[%emt 0:01:02]} 31. Qxc6 {[%emt 0:03:32]} Rc8 {[%emt 0:00:28]} 32. Bxc5 {[%emt 0:00:55]} Qxa2 {[%emt 0:00:29]} 33. Ne7+ {[%emt 0:02:18]} Rxe7 {[%emt 0:00:16]} 34. Qxc8+ {[%emt 0:00:13]} Bxc8 {[%emt 0:00:12]} 35. Bxe7 {[%emt 0:00:07]} Bf5 {[%emt 0:00:55]} 36. O-O {[%emt 0:02:03]} Qxb3 {[%emt 0:00:37]} 37. Bd5+ {[%emt 0:00:18]} Kh7 {[%emt 0:00:22]} 38. Ng3 {[%emt 0:00:27]} Bg4 {[%emt 0:00:41]} 39. Rd3 {[%emt 0:01:10]} Qb8 {[%emt 0:00:31]} 40. Be4+ {[%emt 0:00:19]} Kg8 {[%emt 0:00:30]} 41. Rd8+ {[%emt 0:30:12]} Qxd8 {[%emt 0:30:16]} 42. Bxd8 {[%emt 0:00:02]} Be5 {[%emt 0:00:34]} 43. c5 {[%emt 0:00:11]} 1-0

[Event "SVK-ch Open 2018"]
[Site "Banska Stiavnica"]
[Date "2018.07.07"]
[Round "1"]
[White "Macko, Michal"]
[Black "Pollak, Rudolf"]
[Result "1-0"]
[ECO "A14"]
[WhiteElo "2158"]
[BlackElo "1801"]
[Annotator "NA"]
[PlyCount "109"]
[EventDate "2018.07.07"]
[EventType "swiss"]
[EventCountry "SVK"]
[SourceTitle "playchess.com"]
[Source "ChessBase"]
[SourceQuality "1"]
[TimeControl "40/5400+30:1800+30"]

1. c4 {[%emt 0:00:00]} Nf6 {[%emt 0:00:05]} 2. g3 {[%emt 0:00:00]} e6 {[%emt 0:00:24]} 3. Bg2 {[%emt 0:00:00]} d5 {[%emt 0:00:33]} 4. Nf3 {[%emt 0:00:00]} Be7 {[%emt 0:02:45]} 5. O-O {[%emt 0:00:16]} O-O {[%emt 0:00:08]} 6. b3 {[%emt 0:00:03]} c5 {[%emt 0:01:55]} 7. Bb2 {[%emt 0:01:36]} Nc6 {[%emt 0:00:30]} 8. d3 {[%emt 0:00:11]} a6 {[%emt 0:05:40]} 9. Nbd2 {[%emt 0:00:56]} Qc7 {[%emt 0:03:19]} 10. cxd5 {[%emt 0:03:30]} exd5 {[%emt 0:01:54]} 11. Rc1 {[%emt 0:00:12]} d4 {[%emt 0:07:20]} 12. Ng5 {[%emt 0:08:24]} Bd7 {[%emt 0:04:29]} 13. a3 {[%emt 0:04:36]} Rab8 {[%emt 0:13:39]} 14. b4 {[%emt 0:07:48]} b6 {[%emt 0:01:31]} 15. bxc5 {[%emt 0:03:15]} bxc5 {[%emt 0:00:17]} 16. Qc2 {[%emt 0:02:12]} Rfc8 {[%emt 0:03:37]} 17. Rb1 {[%emt 0:06:18]} Qe5 {[%emt 0:04:40]} 18. h4 {[%emt 0:12:03]} h6 {[%emt 0:01:37]} 19. Nc4 {[%emt 0:00:23]} Qc7 {[%emt 0:01:45]} 20. Ne4 {[%emt 0:07:45]} Nxe4 {[%emt 0:02:49]} 21. Bxe4 {[%emt 0:00:07]} Nd8 {[%emt 0:06:41]} 22. Bc1 {[%emt 0:01:27]} Ne6 {[%emt 0:01:22]} 23. Bd2 {[%emt 0:00:36]} Rb5 {[%emt 0:06:37]} 24. a4 {[%emt 0:01:57]} Rxb1 {[%emt 0:01:20]} 25. Rxb1 {[%emt 0:00:04]} Rb8 {[%emt 0:02:10]} 26. Ba5 {[%emt 0:08:44]} Rxb1+ {[%emt 0:03:41]} 27. Qxb1 {[%emt 0:00:03]} Qc8 {[%emt 0:00:48]} 28. Nb6 {[%emt 0:04:25]} Qe8 {[%emt 0:00:27]} 29. Nxd7 {[%emt 0:02:09]} Qxd7 {[%emt 0:00:46]} 30. Qb8+ {[%emt 0:00:46]} Bf8 {[%emt 0:00:31]} 31. Qb3 {[%emt 0:00:06]} g5 {[%emt 0:02:54]} 32. hxg5 {[%emt 0:02:16]} Nxg5 {[%emt 0:02:08]} 33. Bb7 {[%emt 0:01:42]} Qg4 {[%emt 0:02:53]} 34. Kf1 {[%emt 0:01:05]} Qh3+ {[%emt 0:03:41]} 35. Bg2 {[%emt 0:01:02]} Qd7 {[%emt 0:00:46]} 36. Bd2 {[%emt 0:00:29]} Ne6 {[%emt 0:05:25]} 37. a5 {[%emt 0:00:24]} Qd6 {[%emt 0:05:36]} 38. Qb6 {[%emt 0:02:21]} Kg7 {[%emt 0:00:25]} 39. Bb7 {[%emt 0:01:10]} Qc7 {[%emt 0:01:24]} 40. Bxa6 {[%emt 0:00:37]} Bd6 {[%emt 0:00:23]} 41. Bc4 {[%emt 0:30:28]} Qb8 {[%emt 0:03:04]} 42. Qxb8 {[%emt 0:00:00]} Bxb8 {[%emt 0:00:14]} 43. Bxe6 {[%emt 0:00:00]} fxe6 {[%emt 0:00:25]} 44. Kg2 {[%emt 0:00:00]} Kg6 {[%emt 0:00:42]} 45. Kf3 {[%emt 0:00:00]} h5 {[%emt 0:01:48]} 46. Ke4 {[%emt 0:00:00]} Kf6 {[%emt 0:00:37]} 47. a6 {[%emt 0:00:00]} Ke7 {[%emt 0:01:32]} 48. Ba5 {[%emt 0:00:00]} Ba7 {[%emt 0:00:44]} 49. Kf4 {[%emt 0:00:00]} Kd6 {[%emt 0:00:43]} 50. Kg5 {[%emt 0:00:00]} Kd5 {[%emt 0:00:15]} 51. Kxh5 {[%emt 0:00:00]} c4 {[%emt 0:01:10]} 52. dxc4+ {[%emt 0:00:00]} Kxc4 {[%emt 0:00:34]} 53. g4 {[%emt 0:00:00]} Kb5 {[%emt 0:00:51]} 54. Bc7 {[%emt 0:00:00]} Kxa6 {[%emt 0:00:35]} 55. f4 {[%emt 0:00:00]} 1-0

[Event "SVK-ch Open 2018"]
[Site "Banska Stiavnica"]
[Date "2018.07.07"]
[Round "1"]
[White "Cech, Dominik"]
[Black "Antal, Jakub"]
[Result "1-0"]
[ECO "B36"]
[WhiteElo "2151"]
[BlackElo "1787"]
[Annotator "NA"]
[PlyCount "67"]
[EventDate "2018.07.07"]
[EventType "swiss"]
[EventCountry "SVK"]
[SourceTitle "playchess.com"]
[Source "ChessBase"]
[SourceQuality "1"]
[TimeControl "40/5400+30:1800+30"]

1. e4 {[%emt 0:00:00]} c5 {[%emt 0:00:00]} 2. Nf3 {[%emt 0:00:00]} Nc6 {[%emt 0:00:00]} 3. d4 {[%emt 0:00:00]} cxd4 {[%emt 0:00:01]} 4. Nxd4 {[%emt 0:00:01]} g6 {[%emt 0:00:12]} 5. c4 {[%emt 0:00:20]} Nf6 {[%emt 0:00:47]} 6. Nc3 {[%emt 0:00:17]} d6 {[%emt 0:00:14]} 7. Be2 {[%emt 0:00:31]} Nxd4 {[%emt 0:00:39]} 8. Qxd4 {[%emt 0:00:09]} Bg7 {[%emt 0:00:19]} 9. Be3 {[%emt 0:00:47]} O-O {[%emt 0:00:48]} 10. Qd2 {[%emt 0:00:45]} a5 {[%emt 0:02:36]} 11. f3 {[%emt 0:02:23]} a4 {[%emt 0:00:41]} 12. Rc1 {[%emt 0:02:00]} Qa5 {[%emt 0:08:56]} 13. Kf2 {[%emt 0:07:23]} Bd7 {[%emt 0:10:51]} 14. Nd5 {[%emt 0:08:38]} Nxd5 {[%emt 0:16:39]} 15. Qxa5 {[%emt 0:03:10]} Rxa5 {[%emt 0:00:15]} 16. cxd5 {[%emt 0:00:08]} Rc5 {[%emt 0:31:32]} 17. Bxc5 {[%emt 0:09:49]} dxc5 {[%emt 0:00:38]} 18. Rhd1 {[%emt 0:00:38]} Rc8 {[%emt 0:06:09]} 19. Rc2 {[%emt 0:01:10]} a3 {[%emt 0:04:53]} 20. b3 {[%emt 0:03:35]} b5 {[%emt 0:01:49]} 21. f4 {[%emt 0:04:32]} b4 {[%emt 0:03:29]} 22. e5 {[%emt 0:06:40]} f6 {[%emt 0:05:15]} 23. e6 {[%emt 0:12:47]} Be8 {[%emt 0:00:13]} 24. Rd4 {[%emt 0:00:59]} f5 {[%emt 0:00:42]} 25. Rxb4 {[%emt 0:00:23]} Bf6 {[%emt 0:03:13]} 26. Kf1 {[%emt 0:02:08]} Kg7 {[%emt 0:01:09]} 27. Rbc4 {[%emt 0:01:19]} Bb5 {[%emt 0:00:44]} 28. Rxc5 {[%emt 0:00:24]} Bxe2+ {[%emt 0:00:16]} 29. Kxe2 {[%emt 0:00:07]} Rd8 {[%emt 0:00:55]} 30. Kd3 {[%emt 0:02:11]} Bb2 {[%emt 0:00:30]} 31. b4 {[%emt 0:02:21]} Rb8 {[%emt 0:00:23]} 32. Kc4 {[%emt 0:00:26]} Bf6 {[%emt 0:00:34]} 33. b5 {[%emt 0:00:57]} Bb2 {[%emt 0:00:34]} 34. Kb4 {[%emt 0:01:44]} 1-0